fUST/lending_fUST_20250829
["ID","MTS","AMOUNT","RATE_DAILY","PERIOD"]
[381988250,1756464966948,-480.0,0.0003863,10]
[381988251,1756464966976,-480.0,0.0003863,10]
[381988252,1756464967004,-480.0,0.0003863,10]
[381988253,1756464967030,-480.0,0.0003863,10]
[381988254,1756464967057,-480.0,0.0003863,10]
[381988255,1756464967086,-480.0,0.0003863,10]
[381988256,1756464967116,-928.21,0.0003863,10]
[381988257,1756464967145,-492.48,0.0003863,10]
[381988258,1756464967178,-374.45099536,0.0003863,10]
[381988259,1756464967208,-698.91,0.0003863,10]
[381988260,1756464967235,-520.92,0.0003863,10]
[381988261,1756464967264,-4537.15,0.0003863,10]
[381988262,1756464967292,-480.0,0.0003863,10]
[381988263,1756464967319,-480.0,0.0003863,10]
[381988264,1756464967346,-502.08713156,0.0003863,10]
[381988265,1756464967372,-837.92,0.0003863,10]
[381988266,1756464967398,-480.0,0.0003863,10]
[381988267,1756464967426,-480.0,0.0003863,10]
[381988268,1756464967454,-480.0,0.0003863,10]
[381988269,1756464967483,-480.0,0.0003863,10]
[381988270,1756464967510,-480.0,0.0003863,10]
[381988271,1756464967538,-171.666043,0.0003863,10]
[381988272,1756464967567,-480.0,0.0003863,10]
[381988273,1756464967594,-590.53,0.0003863,10]
[381988274,1756464967623,-768.31,0.0003863,10]
[381988275,1756464967651,-480.0,0.0003863,10]
[381988276,1756464967680,-1137.17,0.0003863,10]
[381988277,1756464967708,-480.0,0.0003863,10]
[381988278,1756464967739,-575.33,0.0003863,10]
[381988279,1756464967768,-1550.77,0.0003863,10]
[381988280,1756464967797,-480.0,0.0003863,10]
[381988281,1756464967826,-1974.88,0.0003863,10]
[381988282,1756464967854,-480.0,0.0003863,10]
[381988283,1756464967882,-683.87,0.0003863,10]
[381988284,1756464967909,-480.0,0.0003863,10]
[381988285,1756464967936,-480.0,0.0003863,10]
[381988286,1756464967965,-613.32,0.0003863,10]
[381988287,1756464967992,-1129.39,0.0003863,10]
[381988288,1756464968021,-4836.28,0.0003863,10]
[381988289,1756464968049,-3131.4,0.0003863,10]
[381988290,1756464968077,-480.0,0.0003863,10]
[381988291,1756464968104,-2316.89,0.0003863,10]
[381988292,1756464968135,-1149.07,0.0003863,10]
[381988293,1756464968162,-480.0,0.0003863,10]
[381988294,1756464968189,-480.0,0.0003863,10]
[381988295,1756464968289,-480.0,0.0003863,10]
[381988296,1756464968321,-845.38,0.0003863,10]
[381988297,1756464968352,-796.44,0.0003863,10]
[381988298,1756464968381,-480.0,0.0003863,10]
[381988299,1756464968410,-542.79193962,0.0003863,10]
[381988300,1756464968438,-480.0,0.00038904,10]
[381988301,1756464968467,-480.0,0.00038904,10]
[381988302,1756464968495,-480.0,0.00038904,10]
[381988303,1756464968523,-480.0,0.00038904,10]
[381988304,1756464968552,-480.0,0.00038904,10]
[381988305,1756464968580,-480.0,0.00038904,10]
[381988306,1756464968609,-480.0,0.00038904,10]
[381988307,1756464968639,-195.10473706,0.00038904,10]
[381988308,1756464968668,-928.21,0.00038904,10]
[381988309,1756464968697,-492.48,0.00038904,10]
[381988310,1756464968726,-698.91,0.00038904,10]
[381988311,1756464968754,-520.92,0.00038904,10]
[381988312,1756464968784,-4537.15,0.00038904,10]
[381988313,1756464968812,-432.73961371,0.00038904,10]
[381988314,1756464968841,-480.0,0.00038904,10]
[381988315,1756464968870,-837.92,0.00038904,10]
[381988316,1756464968898,-480.0,0.00038904,10]
[381988317,1756464968931,-159.94566373,0.00038904,10]
[381988318,1756464968971,-480.0,0.00038904,10]
[381988319,1756464969001,-480.0,0.00038904,10]
[381988320,1756464969030,-480.0,0.00038904,10]
[381988321,1756464969057,-480.0,0.00038904,10]
[381988322,1756464969086,-590.53,0.00038904,10]
[381988323,1756464969115,-768.31,0.00038904,10]
[381988324,1756464969141,-480.0,0.00038904,10]
[381988325,1756464969172,-1137.17,0.00038904,10]
[381988326,1756464969198,-480.0,0.00038904,10]
[381988327,1756464969226,-575.33,0.00038904,10]
[381988328,1756464969256,-1550.77,0.00038904,10]
[381988329,1756464969284,-1974.88,0.00038904,10]
[381988330,1756464969312,-374.71530684,0.00038904,10]
[381988331,1756464969338,-480.0,0.00038904,10]
[381988332,1756464969365,-683.87,0.00038904,10]
[381988333,1756464969393,-1451.23,0.00038904,120]
[381988334,1756464969420,-480.0,0.00038904,10]
[381988335,1756464969447,-480.0,0.00038904,10]
[381988336,1756464969475,-613.32,0.00038904,10]
[381988337,1756464969504,-1129.39,0.00038904,10]
[381988338,1756464969534,-4836.28,0.00038904,10]
[381988339,1756464969563,-3131.4,0.00038904,10]
[381988340,1756464969591,-480.0,0.00038904,10]
[381988341,1756464969621,-2316.89,0.00038904,10]
[381988342,1756464969650,-1149.07,0.00038904,10]
[381988343,1756464969679,-480.0,0.00038904,10]
[381988344,1756464969707,-480.0,0.00038904,10]
[381988345,1756464969735,-480.0,0.00038904,10]
[381988346,1756464969763,-845.38,0.00038904,10]
[381988347,1756464969790,-796.44,0.00038904,10]
[381988348,1756464969818,-480.0,0.00038904,10]
[381988349,1756464969844,-502.71065328,0.00039,30]
[381988350,1756464969871,-168.24461977,0.00039068,30]
[381988351,1756464969970,-480.0,0.00039178,10]
[381988352,1756464969998,-480.0,0.00039178,10]
[381988353,1756464970023,-480.0,0.00039178,10]
[381988354,1756464970047,-480.0,0.00039178,10]
[381988355,1756464970072,-449.39897274,0.00039178,10]
[381988356,1756464970096,-480.0,0.00039178,10]
[381988357,1756464970121,-480.0,0.00039178,10]
[381988358,1756464970147,-928.21,0.00039178,10]
[381988359,1756464970177,-492.48,0.00039178,10]
[381988360,1756464970206,-698.91,0.00039178,10]
[381988361,1756464970233,-520.92,0.00039178,10]
[381988362,1756464970261,-4537.15,0.00039178,10]
[381988363,1756464970289,-183.17520689,0.00039178,10]
[381988364,1756464970316,-837.92,0.00039178,10]
[381988365,1756464970344,-480.0,0.00039178,10]
[381988366,1756464970371,-578.53117665,0.00039178,10]
[381988367,1756464970398,-480.0,0.00039178,10]
[381988368,1756464970424,-480.0,0.00039178,10]
[381988369,1756464970452,-480.0,0.00039178,10]
[381988370,1756464970480,-590.53,0.00039178,10]
[381988371,1756464970507,-768.31,0.00039178,10]
[381988372,1756464970534,-480.0,0.00039178,10]
[381988373,1756464970562,-1137.17,0.00039178,10]
[381988374,1756464970593,-575.33,0.00039178,10]
[381988375,1756464970619,-480.0,0.00039178,10]
[381988376,1756464970648,-1550.77,0.00039178,10]
[381988377,1756464970676,-1974.88,0.00039178,10]
[381988378,1756464970704,-480.0,0.00039178,10]
[381988379,1756464970736,-683.87,0.00039178,10]
[381988380,1756464970764,-480.0,0.00039178,10]
[381988381,1756464970791,-621.00903703,0.00039178,10]
[381988382,1756464970819,-613.32,0.00039178,10]
[381988383,1756464970847,-1129.39,0.00039178,10]
[381988384,1756464970876,-4836.28,0.00039178,10]
[381988385,1756464970908,-3131.4,0.00039178,10]
[381988386,1756464970937,-480.0,0.00039178,10]
[381988387,1756464970966,-2316.89,0.00039178,10]
[381988388,1756464970994,-1149.07,0.00039178,10]
[381988389,1756464971021,-480.0,0.00039178,10]
[381988390,1756464971047,-480.0,0.00039178,10]
[381988391,1756464971077,-605.75052201,0.00039178,10]
[381988392,1756464971106,-845.38,0.00039178,10]
[381988393,1756464971139,-796.44,0.00039178,10]
[381988394,1756464971167,-480.0,0.00039178,10]
[381988395,1756464971194,-223.87808833,0.00039452,10]
[381988396,1756464971223,-480.0,0.00039452,10]
[381988397,1756464971250,-480.0,0.00039452,10]
[381988398,1756464971277,-470.10895241,0.00039452,10]
[381988399,1756464971305,-480.0,0.00039452,10]
[381988400,1756464971333,-480.0,0.00039452,10]
[381988401,1756464971361,-928.21,0.00039452,10]
[381988402,1756464971390,-492.48,0.00039452,10]
[381988403,1756464971427,-698.91,0.00039452,10]
[381988404,1756464971483,-520.92,0.00039452,10]
[381988405,1756464971605,-4537.15,0.00039452,10]
[381988406,1756464971678,-837.92,0.00039452,10]
[381988407,1756464971734,-592.29668274,0.00039452,10]
[381988408,1756464971763,-480.0,0.00039452,10]
[381988409,1756464971792,-480.0,0.00039452,10]
[381988410,1756464971826,-480.0,0.00039452,10]
[381988411,1756464971854,-590.53,0.00039452,10]
[381988412,1756464971883,-768.31,0.00039452,10]
[381988413,1756464971911,-480.0,0.00039452,10]
[381988414,1756464971939,-1137.17,0.00039452,10]
[381988415,1756464971968,-575.33,0.00039452,10]
[381988416,1756464971996,-480.0,0.00039452,10]
[381988417,1756464972024,-1550.77,0.00039452,10]
[381988418,1756464972053,-1974.88,0.00039452,10]
[381988419,1756464972080,-480.0,0.00039452,10]
[381988420,1756464972109,-683.87,0.00039452,10]
[381988421,1756464972142,-1451.23,0.00039452,120]
[381988422,1756464972170,-480.0,0.00039452,10]
[381988423,1756464972200,-613.32,0.00039452,10]
[381988424,1756464972228,-1129.39,0.00039452,10]
[381988425,1756464972258,-4836.28,0.00039452,10]
[381988426,1756464972286,-3131.4,0.00039452,10]
[381988427,1756464972316,-480.0,0.00039452,10]
[381988428,1756464972344,-2316.89,0.00039452,10]
[381988429,1756464972371,-1149.07,0.00039452,10]
[381988430,1756464972399,-480.0,0.00039452,10]
[381988431,1756464972426,-480.0,0.00039452,10]
[381988432,1756464972454,-845.38,0.00039452,10]
[381988433,1756464972482,-796.44,0.00039452,10]
[381988434,1756464972509,-480.0,0.00039452,10]
[381988435,1756464972536,-200.0,0.0003949,120]
[381988436,1756464972562,-480.0,0.00039726,10]
[381988437,1756464972590,-480.0,0.00039726,10]
[381988438,1756464972616,-480.0,0.00039726,10]
[381988439,1756464972643,-480.0,0.00039726,10]
[381988440,1756464972672,-928.21,0.00039726,10]
[381988441,1756464972701,-492.48,0.00039726,10]
[381988442,1756464972728,-698.91,0.00039726,10]
[381988443,1756464972756,-520.92,0.00039726,10]
[381988444,1756464972785,-4537.15,0.00039726,10]
[381988445,1756464972813,-837.92,0.00039726,10]
[381988446,1756464972841,-480.0,0.00039726,10]
[381988447,1756464972868,-567.97798424,0.00039726,10]
[381988448,1756464972895,-480.0,0.00039726,10]
[381988449,1756464972922,-590.53,0.00039726,10]
[381988450,1756464972948,-768.31,0.00039726,10]
[381988451,1756464972974,-480.0,0.00039726,10]
[381988452,1756464973001,-1137.17,0.00039726,10]
[381988453,1756464973030,-575.33,0.00039726,10]
[381988454,1756464973056,-480.0,0.00039726,10]
[381988455,1756464973085,-1550.77,0.00039726,10]
[381988456,1756464973113,-1974.88,0.00039726,10]
[381988457,1756464973140,-172.78336149,0.00039726,10]
[381988458,1756464973238,-683.87,0.00039726,10]
[381988459,1756464973266,-480.0,0.00039726,10]
[381988460,1756464973293,-613.32,0.00039726,10]
[381988461,1756464973321,-1129.39,0.00039726,10]
[381988462,1756464973350,-4836.28,0.00039726,10]
[381988463,1756464973379,-3131.4,0.00039726,10]
[381988464,1756464973407,-480.0,0.00039726,10]
[381988465,1756464973434,-2316.89,0.00039726,10]
[381988466,1756464973461,-1149.07,0.00039726,10]
[381988467,1756464973488,-269.48948704,0.00039726,10]
[381988468,1756464973517,-480.0,0.00039726,10]
[381988469,1756464973545,-845.38,0.00039726,10]
[381988470,1756464973573,-796.44,0.00039726,10]
[381988471,1756464973601,-480.0,0.00039726,10]
[381988472,1756464973628,-501.56894266,0.00039999,15]
[381988473,1756464973654,-500.45120798,0.00039999,31]
[381988474,1756464973681,-744693.37857257,0.0004,120]
[381988475,1756465015215,-199.0,0.00029189,120]
[381988476,1756465015244,-199.0,0.00029189,120]
[381988477,1756465015271,-199.0,0.00029289,120]
[381988478,1756465015299,-199.0,0.00029289,120]
[381988479,1756465015327,-199.0,0.00029389,120]
[381988480,1756465015354,-199.0,0.00029389,120]
[381988481,1756465015382,-288.8,0.0003499,10]
[381988482,1756465015412,-102217.13081052,0.00035,15]
[381988483,1756465015441,-174.5,0.000351,7]
[381988484,1756465015471,-483.66511049,0.00035616,10]
[381988485,1756465015497,-658.29,0.00035616,10]
[381988486,1756465015524,-516.93,0.00035616,10]
[381988487,1756465015554,-395.52915477,0.00035616,10]
[381988488,1756465015580,-480.0,0.00035616,10]
[381988489,1756465015607,-658.29,0.0003589,10]
[381988490,1756465015635,-516.93,0.0003589,10]
[381988491,1756465015662,-480.0,0.0003589,10]
[381988492,1756465015689,-182.22733902,0.00036164,23]
[381988493,1756465015788,-658.29,0.00036164,10]
[381988494,1756465015815,-516.93,0.00036164,10]
[381988495,1756465015843,-480.0,0.00036164,10]
[381988496,1756465015870,-516.93,0.00036438,10]
[381988497,1756465015897,-658.29,0.00036438,10]
[381988498,1756465015923,-480.0,0.00036438,10]
[381988499,1756465015948,-153.0,0.00036709,30]
[381988500,1756465015974,-153.0,0.00036709,30]
[381988501,1756465016000,-153.0,0.00036709,30]
[381988502,1756465016027,-153.0,0.00036711,30]
[381988503,1756465016054,-153.0,0.00036711,30]
[381988504,1756465016080,-153.0,0.00036711,30]
[381988505,1756465016107,-658.29,0.00036712,10]
[381988506,1756465016143,-516.93,0.00036712,10]
[381988507,1756465016171,-480.0,0.00036712,10]
[381988508,1756465016200,-658.29,0.00036986,10]
[381988509,1756465016228,-516.93,0.00036986,10]
[381988510,1756465016254,-480.0,0.00036986,10]
[381988511,1756465016287,-658.29,0.0003726,10]
[381988512,1756465016316,-516.93,0.0003726,10]
[381988513,1756465016343,-480.0,0.0003726,10]
[381988514,1756465016373,-658.29,0.00037534,10]
[381988515,1756465016401,-516.93,0.00037534,10]
[381988516,1756465016428,-480.0,0.00037534,10]
[381988517,1756465016457,-658.29,0.00037808,10]
[381988518,1756465016485,-516.93,0.00037808,10]
[381988519,1756465016512,-480.0,0.00037808,10]
[381988520,1756465016540,-658.29,0.00038082,10]
[381988521,1756465016568,-516.93,0.00038082,10]
[381988522,1756465016597,-480.0,0.00038082,10]
[381988523,1756465016625,-658.29,0.00038356,10]
[381988524,1756465016653,-516.93,0.00038356,10]
[381988525,1756465016680,-480.0,0.00038356,10]
[381988526,1756465016708,-658.29,0.0003863,10]
[381988527,1756465016736,-516.93,0.0003863,10]
[381988528,1756465016764,-190.97591347,0.0003863,10]
[381988529,1756465016792,-658.29,0.00038904,10]
[381988530,1756465016819,-516.93,0.00038904,10]
[381988531,1756465016847,-516.93,0.00039178,10]
[381988532,1756465016875,-658.29,0.00039178,10]
[381988533,1756465016902,-516.93,0.00039452,10]
[381988534,1756465016929,-658.29,0.00039452,10]
[381988535,1756465016956,-174.5,0.000395,7]
[381988536,1756465016984,-516.93,0.00039726,10]
[381988537,1756465017011,-658.29,0.00039726,10]
[381988538,1756465017039,-1869697.15167173,0.0004,120]
[381988539,1756465024653,-392.97,0.00035475,10]
[381988540,1756465024683,-480.0,0.00035616,10]
[381988541,1756465024712,-480.0,0.0003589,10]
[381988542,1756465024742,-480.0,0.00036164,10]
[381988543,1756465024772,-480.0,0.00036438,10]
[381988544,1756465024802,-480.0,0.00036712,10]
[381988545,1756465024830,-480.0,0.00036986,10]
[381988546,1756465024858,-480.0,0.0003726,10]
[381988547,1756465024887,-480.0,0.00037534,10]
[381988548,1756465024916,-480.0,0.00037808,10]
[381988549,1756465024947,-480.0,0.00038082,10]
[381988550,1756465024973,-480.0,0.00038356,10]
[381988551,1756465025002,-480.0,0.0003863,10]
[381988552,1756465025029,-386.59716373,0.00038904,10]
[381988553,1756465025055,-1993460.43283627,0.0004,120]
[381988554,1756465032297,-327.48,0.00035475,10]
[381988555,1756465032325,-480.0,0.00035616,10]
[381988556,1756465032355,-480.0,0.00035616,10]
[381988557,1756465032385,-480.0,0.0003589,10]
[381988558,1756465032413,-480.0,0.0003589,10]
[381988559,1756465032441,-480.0,0.00036164,10]
[381988560,1756465032470,-480.0,0.00036164,10]
[381988561,1756465032498,-480.0,0.00036438,10]
[381988562,1756465032526,-480.0,0.00036438,10]
[381988563,1756465032554,-480.0,0.00036712,10]
[381988564,1756465032582,-480.0,0.00036986,10]
[381988565,1756465032680,-480.0,0.0003726,10]
[381988566,1756465032710,-480.0,0.00037534,10]
[381988567,1756465032739,-480.0,0.00037808,10]
[381988568,1756465032769,-480.0,0.00038082,10]
[381988569,1756465032798,-480.0,0.00038356,10]
[381988570,1756465032825,-480.0,0.0003863,10]
[381988571,1756465032854,-480.0,0.00038904,10]
[381988572,1756465032880,-480.0,0.00039178,10]
[381988573,1756465032908,-480.0,0.00039452,10]
[381988574,1756465032935,-175856.43829979,0.0004,120]
[381988575,1756465032961,-214.30569527,0.0004,120]
[381988576,1756465032988,-957057.23960441,0.0004,120]
[381988577,1756465033015,-423.68335477,0.0004,120]
[381988578,1756465033043,-160.0,0.0004,120]
[381988579,1756465033070,-160.0,0.0004,120]
[381988580,1756465033095,-232.6790651,0.0004,120]
[381988581,1756465033122,-845.57753514,0.0004,120]
[381988582,1756465033153,-480.0,0.0004,10]
[381988583,1756465033181,-480.0,0.0004,10]
[381988584,1756465033208,-480.0,0.0004,10]
[381988585,1756465033236,-1451.23,0.0004,120]
[381988586,1756465033264,-480.0,0.0004,10]
[381988587,1756465033292,-613.32,0.0004,10]
[381988588,1756465033320,-1129.39,0.0004,10]
[381988589,1756465033349,-4836.28,0.0004,10]
[381988590,1756465033379,-3131.4,0.0004,10]
[381988591,1756465033407,-480.0,0.0004,10]
[381988592,1756465033435,-2316.89,0.0004,10]
[381988593,1756465033463,-1149.07,0.0004,10]
[381988594,1756465033491,-480.0,0.0004,10]
[381988595,1756465033521,-845.38,0.0004,10]
[381988596,1756465033551,-796.44,0.0004,10]
[381988597,1756465033578,-480.0,0.0004,10]
[381988598,1756465033606,-516.93,0.0004,10]
[381988599,1756465033635,-658.29,0.0004,10]
[381988600,1756465033663,-2518.23965559,0.0004,120]
[381988601,1756465033691,-199.0,0.00040255,120]
[381988602,1756465033720,-199.0,0.00040255,120]
[381988603,1756465033746,-480.0,0.00040273,10]
[381988604,1756465033773,-394.94555027,0.00040273,10]
[381988605,1756465033800,-480.0,0.00040273,10]
[381988606,1756465033826,-480.0,0.00040273,10]
[381988607,1756465033853,-613.32,0.00040273,10]
[381988608,1756465033881,-1129.39,0.00040273,10]
[381988609,1756465033979,-4836.28,0.00040273,10]
[381988610,1756465034009,-3131.4,0.00040273,10]
[381988611,1756465034037,-480.0,0.00040273,10]
[381988612,1756465034065,-2316.89,0.00040273,10]
[381988613,1756465034094,-1149.07,0.00040273,10]
[381988614,1756465034121,-480.0,0.00040273,10]
[381988615,1756465034153,-845.38,0.00040273,10]
[381988616,1756465034182,-796.44,0.00040273,10]
[381988617,1756465034211,-480.0,0.00040273,10]
[381988618,1756465034240,-516.93,0.00040273,10]
[381988619,1756465034268,-658.29,0.00040273,10]
[381988620,1756465034297,-200.0,0.00040339,120]
[381988621,1756465034324,-480.0,0.00040547,10]
[381988622,1756465034353,-588.13,0.00040547,10]
[381988623,1756465034379,-1451.23,0.00040547,120]
[381988624,1756465034407,-480.0,0.00040547,10]
[381988625,1756465034434,-613.32,0.00040547,10]
[381988626,1756465034462,-1129.39,0.00040547,10]
[381988627,1756465034490,-4836.28,0.00040547,10]
[381988628,1756465034517,-3131.4,0.00040547,10]
[381988629,1756465034544,-480.0,0.00040547,10]
[381988630,1756465034572,-2316.89,0.00040547,10]
[381988631,1756465034600,-1149.07,0.00040547,10]
[381988632,1756465034627,-480.0,0.00040547,10]
[381988633,1756465034658,-845.38,0.00040547,10]
[381988634,1756465034686,-796.44,0.00040547,10]
[381988635,1756465034716,-480.0,0.00040547,10]
[381988636,1756465034745,-516.93,0.00040547,10]
[381988637,1756465034773,-658.29,0.00040547,10]
[381988638,1756465034801,-155.0,0.000407,120]
[381988639,1756465034829,-480.0,0.00040821,10]
[381988640,1756465034856,-393.55644688,0.00040821,10]
[381988641,1756465034885,-613.32,0.00040821,10]
[381988642,1756465034912,-1129.39,0.00040821,10]
[381988643,1756465034941,-4836.28,0.00040821,10]
[381988644,1756465034970,-3131.4,0.00040821,10]
[381988645,1756465034998,-480.0,0.00040821,10]
[381988646,1756465035026,-2316.89,0.00040821,10]
[381988647,1756465035053,-1149.07,0.00040821,10]
[381988648,1756465035080,-551.79691272,0.00040821,10]
[381988649,1756465035108,-845.38,0.00040821,10]
[381988650,1756465035139,-796.44,0.00040821,10]
[381988651,1756465035232,-480.0,0.00040821,10]
[381988652,1756465035264,-516.93,0.00040821,10]
[381988653,1756465035292,-658.29,0.00040821,10]
[381988654,1756465035320,-480.0,0.00041095,120]
[381988655,1756465035347,-1451.23,0.00041095,120]
[381988656,1756465035375,-613.32,0.00041095,120]
[381988657,1756465035403,-1129.39,0.00041095,120]
[381988658,1756465035432,-4836.28,0.00041095,120]
[381988659,1756465035460,-3131.4,0.00041095,120]
[381988660,1756465035487,-624.01754023,0.00041095,120]
[381988661,1756465035516,-2316.89,0.00041095,120]
[381988662,1756465035544,-1149.07,0.00041095,120]
[381988663,1756465035573,-845.38,0.00041095,120]
[381988664,1756465035602,-796.44,0.00041095,120]
[381988665,1756465035630,-480.0,0.00041095,120]
[381988666,1756465035660,-516.93,0.00041095,120]
[381988667,1756465035689,-658.29,0.00041095,120]
[381988668,1756465035717,-862.98,0.00041096,120]
[381988669,1756465035744,-500.0,0.00041096,31]
[381988670,1756465035772,-500.0,0.00041096,31]
[381988671,1756465035799,-500.0,0.00041096,31]
[381988672,1756465035824,-500.0,0.00041096,31]
[381988673,1756465035848,-500.0,0.00041096,31]
[381988674,1756465035876,-500.0,0.00041096,31]
[381988675,1756465035903,-500.0,0.00041096,31]
[381988676,1756465035931,-190.76189215,0.00041096,31]
[381988677,1756465035957,-500.0,0.00041096,31]
[381988678,1756465035985,-500.0,0.00041096,31]
[381988679,1756465036013,-500.0,0.00041096,31]
[381988680,1756465036040,-500.0,0.00041096,31]
[381988681,1756465036066,-500.0,0.00041096,31]
[381988682,1756465036096,-500.0,0.00041096,31]
[381988683,1756465036125,-500.0,0.00041096,31]
[381988684,1756465036155,-500.0,0.00041096,31]
[381988685,1756465036181,-500.0,0.00041096,31]
[381988686,1756465036208,-500.0,0.00041096,31]
[381988687,1756465036235,-500.0,0.00041096,31]
[381988688,1756465036261,-500.0,0.00041096,31]
[381988689,1756465036288,-500.0,0.00041096,31]
[381988690,1756465036315,-500.0,0.00041096,31]
[381988691,1756465036342,-500.0,0.00041096,31]
[381988692,1756465036433,-500.0,0.00041096,31]
[381988693,1756465036460,-216.85702931,0.00041096,31]
[381988694,1756465036486,-403.15,0.000411,7]
[381988695,1756465036515,-200.0,0.000412,120]
[381988696,1756465036542,-1042.43108,0.000412,120]
[381988697,1756465036570,-200.0,0.000412,120]
[381988698,1756465036601,-480.0,0.00041369,120]
[381988699,1756465036631,-613.32,0.00041369,120]
[381988700,1756465036664,-1129.39,0.00041369,120]
[381988701,1756465036694,-4836.28,0.00041369,120]
[381988702,1756465036724,-3131.4,0.00041369,120]
[381988703,1756465036752,-2316.89,0.00041369,120]
[381988704,1756465036779,-1149.07,0.00041369,120]
[381988705,1756465036808,-845.38,0.00041369,120]
[381988706,1756465036838,-796.44,0.00041369,120]
[381988707,1756465036867,-321.07378403,0.00041369,120]
[381988708,1756465036896,-516.93,0.00041369,120]
[381988709,1756465036924,-658.29,0.00041369,120]
[381988710,1756465036955,-200.0,0.00041457,120]
[381988711,1756465036987,-178.88327972,0.00041643,120]
[381988712,1756465037017,-1451.23,0.00041643,120]
[381988713,1756465037047,-613.32,0.00041643,120]
[381988714,1756465037077,-1129.39,0.00041643,120]
[381988715,1756465037109,-4836.28,0.00041643,120]
[381988716,1756465037141,-3131.4,0.00041643,120]
[381988717,1756465037169,-1149.07,0.00041643,120]
[381988718,1756465037198,-2316.89,0.00041643,120]
[381988719,1756465037228,-845.38,0.00041643,120]
[381988720,1756465037256,-796.44,0.00041643,120]
[381988721,1756465037284,-516.93,0.00041643,120]
[381988722,1756465037314,-658.29,0.00041643,120]
[381988723,1756465037343,-613.45294557,0.00041917,120]
[381988724,1756465037373,-1129.44594985,0.00041917,120]
[381988725,1756465037404,-4836.36018996,0.00041917,120]
[381988726,1756465037434,-3131.45227677,0.00041917,120]
[381988727,1756465037463,-1149.20603724,0.00041917,120]
[381988728,1756465037491,-2317.01968448,0.00041917,120]
[381988729,1756465037521,-845.58474571,0.00041917,120]
[381988730,1756465037550,-796.61195447,0.00041917,120]
[381988731,1756465037578,-516.97926187,0.00041917,120]
[381988732,1756465037674,-658.37481037,0.00041917,120]
[381988733,1756465037704,-200.0,0.00042112,120]
[381988734,1756465037731,-200.0,0.00042163,120]
[381988735,1756465037759,-200.0,0.00042163,120]
[381988736,1756465037787,-1451.23,0.00042191,120]
[381988737,1756465037816,-1451.23,0.00042739,120]
[381988738,1756465037845,-200.0,0.000432,120]
[381988739,1756465037873,-1042.43108,0.000432,120]
[381988740,1756465037901,-200.0,0.000432,120]
[381988741,1756465037931,-1451.23,0.00043287,120]
[381988742,1756465037960,-174.5,0.000433,14]
[381988743,1756465037989,-291.40064,0.000434,120]
[381988744,1756465038016,-403.15,0.000435,7]
[381988745,1756465038045,-1000.0,0.000438,90]
[381988746,1756465038076,-1451.23,0.00043835,120]
[381988747,1756465038106,-199.0,0.000439,120]
[381988748,1756465038139,-155.0,0.00044,120]
[381988749,1756465038167,-160.0,0.00044,7]